[Event "Chpt France Universitaire 2024"]
[Site "Bastia, France"]
[Date "2024.04.06"]
[Round "5.8"]
[White "Courjal, Pauline"]
[Black "Arcelin, Gael"]
[Result "0-1"]
[TimeControl "15min+5s"]
[WhiteElo "1982"]
[BlackElo "2126"]

1. d4 {[%clk 00:15:05]} {[%emt 00:00:02]} Nf6 {[%clk 00:15:05]} {[%emt
00:00:01]} 2. c4 {[%clk 00:15:05]} {[%emt 00:00:01]} g6 {[%clk 00:15:05]} 3. g3
{[%clk 00:15:05]} Bg7 {[%clk 00:15:01]} {[%emt 00:00:09]} 4. Bg2 {[%clk
00:15:05]} {[%emt 00:00:02]} c5 {[%clk 00:15:01]} {[%emt 00:00:06]} 5. d5
{[%clk 00:15:05]} {[%emt 00:00:02]} O-O {[%clk 00:14:51]} {[%emt 00:00:15]} 6.
Nc3 {[%clk 00:15:05]} {[%emt 00:00:03]} d6 {[%clk 00:14:51]} 7. Nf3 {[%clk
00:15:05]} {[%emt 00:00:04]} e6 {[%clk 00:14:51]} {[%emt 00:00:04]} 8. O-O
{[%clk 00:15:05]} {[%emt 00:00:03]} Re8 {[%clk 00:14:50]} {[%emt 00:00:05]} 9.
Bf4 {[%clk 00:15:05]} {[%emt 00:00:02]} e5 {[%clk 00:14:44]} {[%emt 00:00:12]}
10. Bg5 {[%clk 00:15:00]} {[%emt 00:00:11]} h6 {[%clk 00:14:44]} {[%emt
00:00:02]} 11. Bxf6 {[%clk 00:14:58]} {[%emt 00:00:06]} Qxf6 {[%clk 00:14:44]}
{[%emt 00:00:02]} 12. e4 {[%clk 00:14:19]} {[%emt 00:00:45]} Kh7 {[%clk
00:13:52]} {[%emt 00:00:57]} 13. Nd2 {[%clk 00:11:51]} {[%emt 00:02:33]} Qe7
{[%clk 00:13:13]} {[%emt 00:00:44]} 14. f4 {[%clk 00:11:04]} {[%emt 00:00:53]}
exf4 {[%clk 00:13:13]} {[%emt 00:00:02]} 15. Rxf4 {[%clk 00:11:04]} {[%emt
00:00:03]} Nd7 {[%clk 00:12:34]} {[%emt 00:00:44]} 16. h3 {[%clk 00:09:36]}
{[%emt 00:01:33]} Ne5 {[%clk 00:11:32]} {[%emt 00:01:06]} 17. Qe2 {[%clk
00:09:27]} {[%emt 00:00:15]} Bd7 {[%clk 00:10:49]} {[%emt 00:00:48]} 18. Kh2
{[%clk 00:09:04]} {[%emt 00:00:27]} a6 {[%clk 00:10:00]} {[%emt 00:00:54]} 19.
Rf2 {[%clk 00:08:28]} {[%emt 00:00:41]} b5 {[%clk 00:09:14]} {[%emt 00:00:51]}
20. cxb5 {[%clk 00:06:36]} axb5 {[%clk 00:09:14]} 21. Nxb5 {[%clk 00:06:36]}
Bxb5 {[%clk 00:09:14]} 22. Qxb5 {[%clk 00:06:36]} Reb8 {[%clk 00:08:03]} {[%emt
00:03:18]} 23. Qf1 {[%clk 00:05:35]} {[%emt 00:01:06]} Rxb2 {[%clk 00:08:03]}
{[%emt 00:00:02]} 24. a4 {[%clk 00:03:54]} c4 {[%clk 00:05:27]} {[%emt
00:04:29]} 25. Ra3 {[%clk 00:03:27]} Qa7 {[%clk 00:03:46]} {[%emt 00:02:17]} 26.
Re2 {[%clk 00:02:05]} Qc5 {[%clk 00:03:46]} 27. Rc3 {[%clk 00:02:05]} Qa7
{[%clk 00:02:53]} 28. Ra3 {[%clk 00:02:05]} Qc5 {[%clk 00:03:46]} 29. Rc3
{[%clk 00:02:05]} Qd4 {[%clk 00:03:46]} 30. Nb1 {[%clk 00:02:05]} Rxb1 {[%clk
00:03:46]} 31. Qxb1 {[%clk 00:02:05]} Qxc3 {[%clk 00:02:38]} {[%emt 00:04:10]}
32. Rc2 {[%clk 00:00:59]} Qb3 {[%clk 00:02:38]} 33. Qc1 {[%clk 00:00:59]} Rxa4
{[%clk 00:02:38]} 0-1

[Event "Chpt France Universitaire 2024"]
[Site "Bastia, France"]
[Date "2024.04.06"]
[Round "5.9"]
[White "Aghamir Alrobiai, Nizar"]
[Black "Toure, Shanthi"]
[Result "1-0"]
[TimeControl "15min+5s"]
[WhiteElo "2098"]
[BlackElo "1890"]

1. e4 {[%clk 00:15:05]} {[%emt 00:00:01]} e5 {[%clk 00:15:05]} {[%emt
00:00:02]} 2. Nf3 {[%clk 00:15:05]} Nc6 {[%clk 00:15:05]} {[%emt 00:00:03]} 3.
Bb5 {[%clk 00:15:05]} {[%emt 00:00:01]} a6 {[%clk 00:15:05]} {[%emt 00:00:02]}
4. Ba4 {[%clk 00:15:05]} {[%emt 00:00:01]} Nf6 {[%clk 00:15:05]} {[%emt
00:00:02]} 5. d3 {[%clk 00:14:57]} {[%emt 00:00:13]} b5 {[%clk 00:15:04]}
{[%emt 00:00:06]} 6. Bb3 {[%clk 00:14:57]} {[%emt 00:00:01]} Bc5 {[%clk
00:15:02]} {[%emt 00:00:08]} 7. O-O {[%clk 00:14:54]} {[%emt 00:00:06]} O-O
{[%clk 00:15:02]} {[%emt 00:00:06]} 8. Nc3 {[%clk 00:14:38]} {[%emt 00:00:21]}
h6 {[%clk 00:14:39]} {[%emt 00:00:28]} 9. h3 {[%clk 00:14:23]} {[%emt
00:00:20]} d6 {[%clk 00:14:32]} {[%emt 00:00:13]} 10. a3 {[%clk 00:14:23]}
{[%emt 00:00:03]} Bb6 {[%clk 00:14:20]} {[%emt 00:00:16]} 11. Nd5 {[%clk
00:14:12]} {[%emt 00:00:16]} Nxd5 {[%clk 00:13:58]} {[%emt 00:00:28]} 12. Bxd5
{[%clk 00:14:12]} {[%emt 00:00:02]} Bb7 {[%clk 00:13:55]} {[%emt 00:00:08]} 13.
Be3 {[%clk 00:13:38]} {[%emt 00:00:38]} Bxe3 {[%clk 00:13:26]} {[%emt
00:00:35]} 14. fxe3 {[%clk 00:13:38]} {[%emt 00:00:02]} Na5 {[%clk 00:13:26]}
{[%emt 00:00:04]} 15. Ba2 {[%clk 00:13:34]} {[%emt 00:00:09]} c5 {[%clk
00:13:15]} {[%emt 00:00:15]} 16. Qe1 {[%clk 00:13:30]} {[%emt 00:00:08]} Rc8
{[%clk 00:12:24]} {[%emt 00:00:57]} 17. Qg3 {[%clk 00:12:50]} {[%emt 00:00:44]}
c4 {[%clk 00:11:35]} {[%emt 00:00:54]} 18. Rf2 {[%clk 00:12:10]} {[%emt
00:00:44]} Bc6 {[%clk 00:10:10]} {[%emt 00:01:31]} 19. b4 {[%clk 00:11:50]}
{[%emt 00:00:25]} Nb7 {[%clk 00:09:10]} {[%emt 00:01:05]} 20. Raf1 {[%clk
00:11:49]} {[%emt 00:00:06]} Rc7 {[%clk 00:08:36]} {[%emt 00:00:39]} 21. Nd2
{[%clk 00:10:39]} {[%emt 00:01:15]} cxd3 {[%clk 00:08:35]} {[%emt 00:00:07]} 22.
cxd3 {[%clk 00:10:39]} {[%emt 00:00:01]} Re7 {[%clk 00:08:31]} {[%emt
00:00:09]} 23. Nf3 {[%clk 00:10:32]} {[%emt 00:00:11]} a5 {[%clk 00:08:24]}
{[%emt 00:00:12]} 24. Nh4 {[%clk 00:10:32]} {[%emt 00:00:03]} Bd7 {[%clk
00:08:24]} {[%emt 00:00:04]} 25. Ng6 {[%clk 00:10:32]} {[%emt 00:00:03]} Be8
{[%clk 00:07:12]} {[%emt 00:01:17]} 26. Bd5 {[%clk 00:09:28]} {[%emt 00:01:09]}
Qc7 {[%clk 00:06:29]} {[%emt 00:00:48]} 27. Qh4 {[%clk 00:07:54]} {[%emt
00:01:39]} Rd7 {[%clk 00:06:07]} {[%emt 00:00:28]} 28. d4 {[%clk 00:06:58]}
{[%emt 00:01:01]} axb4 {[%clk 00:05:03]} {[%emt 00:01:10]} 29. axb4 {[%clk
00:06:58]} {[%emt 00:00:01]} Nd8 {[%clk 00:04:45]} {[%emt 00:00:23]} 30. Qg3
{[%clk 00:06:05]} {[%emt 00:00:57]} exd4 {[%clk 00:04:35]} {[%emt 00:00:16]} 31.
exd4 {[%clk 00:06:05]} {[%emt 00:00:05]} Nc6 {[%clk 00:04:29]} {[%emt
00:00:11]} 32. Nxf8 {[%clk 00:06:01]} {[%emt 00:00:09]} Kxf8 {[%clk 00:04:29]}
{[%emt 00:00:05]} 33. Rc2 {[%clk 00:06:01]} {[%emt 00:00:04]} Qb6 {[%clk
00:03:06]} {[%emt 00:01:29]} 34. Bxc6 {[%clk 00:05:58]} {[%emt 00:00:08]} Rc7
{[%clk 00:03:06]} {[%emt 00:00:02]} 35. Qxd6+ {[%clk 00:05:52]} {[%emt
00:00:11]} Kg8 {[%clk 00:03:06]} {[%emt 00:00:04]} 36. Kh1 {[%clk 00:05:17]}
{[%emt 00:00:40]} Rxc6 {[%clk 00:03:05]} {[%emt 00:00:06]} 37. Rxc6 {[%clk
00:05:17]} {[%emt 00:00:03]} Qxc6 {[%clk 00:03:05]} {[%emt 00:00:04]} 38. Qxc6
{[%clk 00:05:17]} {[%emt 00:00:02]} Bxc6 {[%clk 00:03:05]} {[%emt 00:00:02]} 39.
d5 {[%clk 00:05:17]} {[%emt 00:00:02]} Bd7 {[%clk 00:03:05]} {[%emt 00:00:03]}
40. Rc1 {[%clk 00:05:15]} {[%emt 00:00:06]} Kf8 {[%clk 00:03:05]} {[%emt
00:00:04]} 41. Kg1 {[%clk 00:05:11]} {[%emt 00:00:09]} f6 {[%clk 00:03:03]}
{[%emt 00:00:06]} 42. Kf2 {[%clk 00:05:11]} {[%emt 00:00:03]} Ke7 {[%clk
00:03:03]} {[%emt 00:00:01]} 43. Ke3 {[%clk 00:05:11]} {[%emt 00:00:01]} Kd6
{[%clk 00:03:01]} {[%emt 00:00:07]} 44. Kd4 {[%clk 00:05:11]} {[%emt 00:00:02]}
Be8 {[%clk 00:02:58]} {[%emt 00:00:09]} 45. Rc8 {[%clk 00:05:11]} {[%emt
00:00:04]} Bf7 {[%clk 00:02:03]} {[%emt 00:01:01]} 46. Rb8 {[%clk 00:05:11]}
{[%emt 00:00:03]} 1-0

[Event "Chpt France Universitaire 2024"]
[Site "Bastia, France"]
[Date "2024.04.06"]
[Round "5.10"]
[White "Destic, Elena"]
[Black "Hingouet, Matthieu"]
[Result "1-0"]
[TimeControl "15min+5s"]
[WhiteElo "1946"]
[BlackElo "2210"]

1. e4 {[%clk 00:15:05]} c5 {[%clk 00:15:05]} {[%emt 00:00:03]} 2. Nf3 {[%clk
00:15:05]} {[%emt 00:00:02]} Nc6 {[%clk 00:15:05]} {[%emt 00:00:01]} 3. b4
{[%clk 00:15:05]} {[%emt 00:00:02]} cxb4 {[%clk 00:14:45]} {[%emt 00:00:26]} 4.
d4 {[%clk 00:15:05]} {[%emt 00:00:04]} d5 {[%clk 00:14:04]} {[%emt 00:00:46]} 5.
exd5 {[%clk 00:15:05]} {[%emt 00:00:01]} Qxd5 {[%clk 00:14:04]} {[%emt
00:00:01]} 6. c4 {[%clk 00:15:05]} {[%emt 00:00:01]} Qd8 {[%clk 00:10:35]}
{[%emt 00:03:34]} 7. d5 {[%clk 00:14:58]} {[%emt 00:00:13]} Nb8 {[%clk
00:10:32]} {[%emt 00:00:08]} 8. Qa4+ {[%clk 00:13:39]} {[%emt 00:01:24]} Bd7
{[%clk 00:09:42]} {[%emt 00:00:55]} 9. Qxb4 {[%clk 00:13:39]} {[%emt 00:00:03]}
Na6 {[%clk 00:09:29]} {[%emt 00:00:18]} 10. Qd2 {[%clk 00:13:11]} {[%emt
00:00:32]} Nf6 {[%clk 00:08:25]} {[%emt 00:01:11]} 11. Nc3 {[%clk 00:12:45]}
{[%emt 00:00:30]} g6 {[%clk 00:08:20]} {[%emt 00:00:11]} 12. Be2 {[%clk
00:12:42]} {[%emt 00:00:08]} Bg7 {[%clk 00:08:20]} {[%emt 00:00:01]} 13. Bb2
{[%clk 00:12:34]} {[%emt 00:00:13]} O-O {[%clk 00:08:14]} {[%emt 00:00:10]} 14.
O-O {[%clk 00:12:34]} {[%emt 00:00:02]} Bg4 {[%clk 00:07:11]} {[%emt 00:01:08]}
15. h3 {[%clk 00:12:23]} {[%emt 00:00:17]} Bxf3 {[%clk 00:07:11]} {[%emt
00:00:02]} 16. Bxf3 {[%clk 00:12:23]} {[%emt 00:00:01]} Ne8 {[%clk 00:06:07]}
{[%emt 00:01:09]} 17. Ne4 {[%clk 00:10:01]} {[%emt 00:02:26]} Bxb2 {[%clk
00:04:13]} {[%emt 00:02:00]} 18. Qxb2 {[%clk 00:10:01]} {[%emt 00:00:01]} Nd6
{[%clk 00:04:13]} 19. Qd4 {[%clk 00:08:55]} {[%emt 00:01:11]} b6 {[%clk
00:03:24]} {[%emt 00:00:54]} 20. Rfe1 {[%clk 00:08:26]} {[%emt 00:00:33]} Rc8
{[%clk 00:03:24]} {[%emt 00:00:06]} 21. Rac1 {[%clk 00:08:24]} {[%emt
00:00:07]} Nc5 {[%clk 00:02:54]} {[%emt 00:00:36]} 22. Nxd6 {[%clk 00:07:56]}
{[%emt 00:00:33]} exd6 {[%clk 00:02:44]} {[%emt 00:00:15]} 23. Re2 {[%clk
00:07:46]} {[%emt 00:00:15]} Nb7 {[%clk 00:01:47]} {[%emt 00:01:02]} 24. Be4
{[%clk 00:05:59]} {[%emt 00:01:52]} Re8 {[%clk 00:00:50]} {[%emt 00:01:03]} 25.
Rce1 {[%clk 00:05:59]} Qh4 {[%clk 00:00:38]} {[%emt 00:00:17]} 26. g3 {[%clk
00:05:17]} {[%emt 00:00:47]} Qh6 {[%clk 00:00:28]} {[%emt 00:00:16]} 27. Bg2
{[%clk 00:05:14]} {[%emt 00:00:07]} Rxe2 {[%clk 00:00:28]} 28. Rxe2 {[%clk
00:05:14]} Na5 {[%clk 00:00:28]} {[%emt 00:00:07]} 29. Qf6 {[%clk 00:04:51]}
{[%emt 00:00:27]} Qg7 {[%clk 00:00:28]} {[%emt 00:00:05]} 30. Qxd6 {[%clk
00:04:50]} {[%emt 00:00:06]} Nxc4 {[%clk 00:00:25]} {[%emt 00:00:07]} 31. Qd7
{[%clk 00:04:50]} {[%emt 00:00:05]} Qf8 {[%clk 00:00:25]} {[%emt 00:00:03]} 32.
Re7 {[%clk 00:04:39]} {[%emt 00:00:15]} a5 {[%clk 00:00:20]} {[%emt 00:00:11]}
33. Re2 {[%clk 00:03:34]} {[%emt 00:01:10]} Rd8 {[%clk 00:00:20]} {[%emt
00:00:02]} 34. Qb5 {[%clk 00:03:33]} {[%emt 00:00:05]} Qc5 {[%clk 00:00:19]}
{[%emt 00:00:07]} 35. Qxc5 {[%clk 00:03:26]} {[%emt 00:00:13]} bxc5 {[%clk
00:00:19]} 36. Rc2 {[%clk 00:03:26]} Nd6 {[%clk 00:00:15]} {[%emt 00:00:09]} 37.
Rxc5 {[%clk 00:03:26]} {[%emt 00:00:02]} Nb7 {[%clk 00:00:15]} {[%emt
00:00:05]} 38. Rb5 {[%clk 00:03:26]} {[%emt 00:00:03]} Rd7 {[%clk 00:00:15]}
{[%emt 00:00:01]} 39. Kf1 {[%emt 00:00:13]} Kf8 40. Ke2 {[%clk 00:03:16]}
{[%emt 00:00:06]} Ke7 {[%clk 00:00:15]} 41. Rxb7 {[%clk 00:02:33]} {[%emt
00:00:48]} 1-0

[Event "Chpt France Universitaire 2024"]
[Site "Bastia, France"]
[Date "2024.04.06"]
[Round "5.11"]
[White "Dubuisson, Samuel"]
[Black "Ratier-Fontana, Loic"]
[Result "1-0"]
[TimeControl "15min+5s"]
[WhiteElo "2129"]
[BlackElo "1863"]

1. Nf3 {[%clk 00:15:05]} {[%emt 00:00:02]} Nf6 {[%clk 00:15:05]} {[%emt
00:00:03]} 2. c4 {[%clk 00:15:05]} {[%emt 00:00:05]} b6 {[%clk 00:15:05]}
{[%emt 00:00:04]} 3. g3 {[%clk 00:15:05]} {[%emt 00:00:03]} Bb7 {[%clk
00:15:05]} {[%emt 00:00:02]} 4. Bg2 {[%clk 00:15:05]} {[%emt 00:00:01]} e6
{[%clk 00:15:05]} {[%emt 00:00:06]} 5. O-O {[%clk 00:15:05]} {[%emt 00:00:03]}
Be7 {[%clk 00:14:53]} {[%emt 00:00:17]} 6. b3 {[%clk 00:14:48]} {[%emt
00:00:21]} d5 {[%clk 00:14:40]} {[%emt 00:00:19]} 7. Bb2 {[%clk 00:14:09]}
{[%emt 00:00:44]} O-O {[%clk 00:14:26]} {[%emt 00:00:20]} 8. Qc2 {[%clk
00:13:57]} {[%emt 00:00:17]} Nbd7 {[%clk 00:14:05]} {[%emt 00:00:27]} 9. Nc3
{[%clk 00:12:33]} {[%emt 00:01:29]} c6 {[%clk 00:13:24]} {[%emt 00:00:45]} 10.
Rac1 {[%clk 00:12:07]} {[%emt 00:00:31]} Rc8 {[%clk 00:13:21]} {[%emt
00:00:08]} 11. d4 {[%clk 00:11:44]} {[%emt 00:00:28]} Re8 {[%clk 00:12:40]}
{[%emt 00:00:46]} 12. Rfd1 {[%clk 00:11:42]} {[%emt 00:00:07]} Qc7 {[%clk
00:12:23]} {[%emt 00:00:22]} 13. Nd2 {[%clk 00:10:24]} {[%emt 00:01:23]} Qb8
{[%clk 00:11:47]} {[%emt 00:00:42]} 14. e4 {[%clk 00:09:35]} {[%emt 00:00:53]}
dxe4 {[%clk 00:11:15]} {[%emt 00:00:36]} 15. Ndxe4 {[%clk 00:09:28]} {[%emt
00:00:13]} Nxe4 {[%clk 00:11:15]} {[%emt 00:00:04]} 16. Nxe4 {[%clk 00:09:24]}
{[%emt 00:00:08]} Nf6 {[%clk 00:11:15]} {[%emt 00:00:03]} 17. Qd3 {[%clk
00:07:31]} {[%emt 00:01:59]} Red8 {[%clk 00:11:04]} {[%emt 00:00:16]} 18. d5
{[%clk 00:06:59]} {[%emt 00:00:37]} cxd5 {[%clk 00:10:12]} {[%emt 00:00:57]} 19.
Nxf6+ {[%clk 00:06:52]} {[%emt 00:00:12]} Bxf6 {[%clk 00:10:06]} {[%emt
00:00:11]} 20. Bxf6 {[%clk 00:06:52]} {[%emt 00:00:02]} gxf6 {[%clk 00:10:06]}
{[%emt 00:00:05]} 21. Qf3 {[%clk 00:05:47]} {[%emt 00:01:10]} Qe5 {[%clk
00:09:33]} {[%emt 00:00:38]} 22. Re1 {[%clk 00:05:44]} {[%emt 00:00:08]} Qg5
{[%clk 00:09:28]} {[%emt 00:00:10]} 23. h4 {[%clk 00:05:44]} {[%emt 00:00:03]}
Qg6 {[%clk 00:08:40]} {[%emt 00:00:54]} 24. Rcd1 {[%clk 00:04:52]} {[%emt
00:00:56]} Ba8 {[%clk 00:08:19]} {[%emt 00:00:26]} 25. cxd5 {[%clk 00:03:36]}
{[%emt 00:01:22]} Bxd5 {[%clk 00:08:02]} {[%emt 00:00:22]} 26. Qf4 {[%clk
00:03:36]} {[%emt 00:00:03]} Bxg2 {[%clk 00:08:00]} {[%emt 00:00:07]} 27. Kxg2
{[%clk 00:03:35]} {[%emt 00:00:06]} Rxd1 {[%clk 00:06:59]} {[%emt 00:01:06]} 28.
Rxd1 {[%clk 00:03:35]} {[%emt 00:00:02]} Qc2 {[%clk 00:06:49]} {[%emt
00:00:15]} 29. Rd2 {[%clk 00:03:17]} {[%emt 00:00:23]} Qc6+ {[%clk 00:06:48]}
{[%emt 00:00:05]} 30. Kh2 {[%clk 00:03:17]} {[%emt 00:00:02]} e5 {[%clk
00:05:39]} {[%emt 00:01:15]} 31. Qg4+ {[%clk 00:03:10]} {[%emt 00:00:12]} Kf8
{[%clk 00:05:38]} {[%emt 00:00:07]} 32. Rd7 {[%clk 00:03:01]} {[%emt 00:00:13]}
Rc7 {[%clk 00:05:13]} {[%emt 00:00:31]} 33. Rd8+ {[%clk 00:03:01]} {[%emt
00:00:04]} Ke7 {[%clk 00:05:13]} {[%emt 00:00:04]} 34. Qg8 {[%clk 00:03:00]}
{[%emt 00:00:06]} Ke6 {[%clk 00:03:59]} {[%emt 00:01:20]} 35. Re8+ {[%clk
00:02:25]} {[%emt 00:00:40]} Kd5 {[%clk 00:03:51]} {[%emt 00:00:13]} 36. Rd8+
{[%clk 00:01:57]} {[%emt 00:00:34]} Kc5 {[%clk 00:03:23]} {[%emt 00:00:33]} 37.
Qxh7 {[%clk 00:01:48]} {[%emt 00:00:14]} Kb4 {[%clk 00:02:51]} {[%emt
00:00:37]} 38. Qd3 {[%clk 00:01:38]} {[%emt 00:00:15]} Qc2 {[%clk 00:02:05]}
{[%emt 00:00:51]} 39. Qxc2 {[%clk 00:01:16]} {[%emt 00:00:27]} Rxc2 {[%clk
00:02:05]} {[%emt 00:00:01]} 40. Kg2 {[%clk 00:01:16]} {[%emt 00:00:01]} Rxa2
{[%clk 00:02:05]} {[%emt 00:00:02]} 41. h5 {[%clk 00:01:16]} {[%emt 00:00:01]}
e4 {[%clk 00:00:32]} {[%emt 00:01:38]} 42. h6 {[%clk 00:00:51]} {[%emt
00:00:30]} e3 {[%clk 00:00:16]} {[%emt 00:00:21]} 43. h7 {[%clk 00:00:51]}
{[%emt 00:00:06]} Rxf2+ {[%clk 00:00:10]} {[%emt 00:00:10]} 44. Kg1 {[%clk
00:00:48]} {[%emt 00:00:06]} Kxb3 {[%clk 00:00:10]} {[%emt 00:00:06]} 45. h8=Q
{[%clk 00:00:42]} {[%emt 00:00:11]} Rd2 {[%clk 00:00:09]} {[%emt 00:00:06]} 46.
Re8 {[%clk 00:00:34]} {[%emt 00:00:12]} e2 {[%clk 00:00:09]} {[%emt 00:00:03]}
47. Kf2 {[%clk 00:00:31]} {[%emt 00:00:08]} e1=Q+ {[%clk 00:00:08]} {[%emt
00:00:06]} 48. Kxe1 {[%clk 00:00:31]} {[%emt 00:00:02]} Rb2 {[%clk 00:00:08]}
{[%emt 00:00:02]} 49. Re3+ {[%clk 00:00:30]} {[%emt 00:00:05]} Ka2 {[%clk
00:00:08]} {[%emt 00:00:04]} 50. Qxf6 {[%clk 00:00:26]} {[%emt 00:00:10]} a5
{[%clk 00:00:08]} {[%emt 00:00:05]} 51. Qxf7+ {[%clk 00:00:26]} {[%emt
00:00:03]} Kb1 {[%clk 00:00:08]} {[%emt 00:00:03]} 52. Qf5+ {[%clk 00:00:22]}
{[%emt 00:00:09]} Ka1 {[%clk 00:00:08]} {[%emt 00:00:02]} 53. Ra3+ {[%clk
00:00:20]} {[%emt 00:00:08]} Ra2 {[%clk 00:00:08]} 54. Qe5+ {[%clk 00:00:18]}
{[%emt 00:00:06]} Kb1 {[%clk 00:00:08]} {[%emt 00:00:02]} 55. Qe4+ {[%clk
00:00:18]} {[%emt 00:00:03]} Kb2 {[%clk 00:00:08]} {[%emt 00:00:02]} 56. Rxa2+
{[%clk 00:00:17]} {[%emt 00:00:06]} Kxa2 {[%clk 00:00:08]} {[%emt 00:00:01]} 57.
Qa4+ {[%clk 00:00:17]} {[%emt 00:00:02]} Kb2 {[%clk 00:00:08]} {[%emt
00:00:02]} 58. Kd2 {[%clk 00:00:14]} {[%emt 00:00:08]} b5 {[%clk 00:00:08]}
{[%emt 00:00:02]} 59. Qxb5+ {[%clk 00:00:14]} {[%emt 00:00:02]} Ka2 {[%clk
00:00:08]} {[%emt 00:00:02]} 60. Kc2 {[%clk 00:00:14]} {[%emt 00:00:02]} a4
{[%clk 00:00:08]} {[%emt 00:00:01]} 61. Qb2# {[%emt 00:00:02]} 1-0

[Event "Chpt France Universitaire 2024"]
[Site "Bastia, France"]
[Date "2024.04.06"]
[Round "5.12"]
[White "Lordier, Sophia"]
[Black "Blanquet, Camille"]
[Result "1-0"]
[TimeControl "15min+5s"]
[WhiteElo "1934"]
[BlackElo "2035"]

1. d4 {[%clk 00:15:05]} {[%emt 00:00:01]} Nf6 {[%clk 00:15:04]} {[%emt
00:00:07]} 2. c4 {[%clk 00:15:05]} {[%emt 00:00:01]} e6 {[%clk 00:14:40]}
{[%emt 00:00:29]} 3. g3 {[%clk 00:15:05]} {[%emt 00:00:02]} c5 {[%clk
00:14:18]} {[%emt 00:00:27]} 4. d5 {[%clk 00:15:05]} {[%emt 00:00:02]} exd5
{[%clk 00:14:18]} {[%emt 00:00:02]} 5. cxd5 {[%clk 00:15:05]} d6 {[%clk
00:14:18]} {[%emt 00:00:02]} 6. Nc3 {[%clk 00:15:05]} {[%emt 00:00:01]} g6
{[%clk 00:14:12]} {[%emt 00:00:12]} 7. Bg2 {[%clk 00:15:05]} {[%emt 00:00:01]}
Bg7 {[%clk 00:14:12]} {[%emt 00:00:02]} 8. Nf3 {[%clk 00:15:05]} {[%emt
00:00:02]} O-O {[%clk 00:14:02]} {[%emt 00:00:14]} 9. O-O {[%clk 00:15:05]}
{[%emt 00:00:03]} Re8 {[%clk 00:13:48]} {[%emt 00:00:20]} 10. Nd2 {[%clk
00:15:02]} {[%emt 00:00:08]} Na6 {[%clk 00:13:20]} {[%emt 00:00:33]} 11. Nc4
{[%clk 00:14:46]} {[%emt 00:00:20]} Nc7 {[%clk 00:13:17]} {[%emt 00:00:08]} 12.
Bf4 {[%clk 00:14:39]} {[%emt 00:00:12]} Bf8 {[%clk 00:13:17]} {[%emt 00:00:03]}
13. a4 {[%clk 00:14:30]} {[%emt 00:00:14]} a5 {[%clk 00:12:58]} {[%emt
00:00:24]} 14. Qd2 {[%clk 00:13:53]} {[%emt 00:00:41]} Nh5 {[%clk 00:12:38]}
{[%emt 00:00:25]} 15. Bg5 {[%clk 00:13:34]} {[%emt 00:00:23]} Be7 {[%clk
00:12:38]} {[%emt 00:00:02]} 16. Bxe7 {[%clk 00:13:32]} {[%emt 00:00:06]} Rxe7
{[%clk 00:11:51]} {[%emt 00:00:52]} 17. e4 {[%clk 00:13:19]} {[%emt 00:00:18]}
Ne8 {[%clk 00:11:39]} {[%emt 00:00:17]} 18. f4 {[%clk 00:12:42]} {[%emt
00:00:42]} Nhg7 {[%clk 00:11:02]} {[%emt 00:00:43]} 19. Rfe1 {[%clk 00:11:25]}
{[%emt 00:01:21]} b6 {[%clk 00:10:47]} {[%emt 00:00:20]} 20. e5 {[%clk
00:11:20]} {[%emt 00:00:10]} Nf5 {[%clk 00:10:37]} {[%emt 00:00:15]} 21. Nb5
{[%clk 00:11:05]} {[%emt 00:00:20]} Ba6 {[%clk 00:10:15]} {[%emt 00:00:28]} 22.
e6 {[%clk 00:08:52]} {[%emt 00:02:18]} Bxb5 {[%clk 00:10:07]} {[%emt 00:00:13]}
23. axb5 {[%clk 00:08:51]} {[%emt 00:00:06]} Nd4 {[%clk 00:09:59]} {[%emt
00:00:13]} 24. g4 {[%clk 00:07:25]} {[%emt 00:01:31]} Nb3 {[%clk 00:09:17]}
{[%emt 00:00:47]} 25. Qd3 {[%clk 00:07:22]} {[%emt 00:00:06]} Nxa1 {[%clk
00:09:17]} {[%emt 00:00:04]} 26. Rxa1 {[%clk 00:07:22]} {[%emt 00:00:02]} Rb8
{[%clk 00:08:45]} {[%emt 00:00:36]} 27. f5 {[%clk 00:07:18]} {[%emt 00:00:09]}
Nc7 {[%clk 00:08:30]} {[%emt 00:00:20]} 28. f6 {[%clk 00:06:37]} {[%emt
00:00:46]} Re8 {[%clk 00:08:23]} {[%emt 00:00:13]} 29. e7 {[%clk 00:06:34]}
{[%emt 00:00:07]} Qd7 {[%clk 00:08:23]} {[%emt 00:00:03]} 30. Qe3 {[%clk
00:06:19]} {[%emt 00:00:20]} Nxd5 {[%clk 00:08:04]} {[%emt 00:00:25]} 31. Bxd5
{[%clk 00:06:09]} {[%emt 00:00:14]} Qxg4+ {[%clk 00:08:04]} {[%emt 00:00:03]}
32. Kh1 {[%clk 00:05:44]} {[%emt 00:00:27]} Qf5 {[%clk 00:07:58]} {[%emt
00:00:14]} 33. Qf3 {[%clk 00:05:43]} {[%emt 00:00:04]} Qg5 {[%clk 00:06:58]}
{[%emt 00:01:07]} 34. Nxd6 {[%clk 00:05:35]} {[%emt 00:00:13]} Rxe7 {[%clk
00:06:37]} {[%emt 00:00:26]} 35. fxe7 {[%clk 00:05:35]} {[%emt 00:00:04]} Qxe7
{[%clk 00:06:37]} {[%emt 00:00:02]} 36. Nxf7 {[%clk 00:04:34]} {[%emt
00:01:06]} Rf8 {[%clk 00:06:30]} {[%emt 00:00:12]} 37. Ng5+ {[%clk 00:04:07]}
{[%emt 00:00:31]} Kh8 {[%clk 00:05:55]} {[%emt 00:00:41]} 38. Qc3+ {[%clk
00:04:05]} {[%emt 00:00:06]} Qf6 {[%clk 00:05:55]} {[%emt 00:00:03]} 39. Rf1
{[%clk 00:03:45]} {[%emt 00:00:24]} Qxc3 {[%clk 00:05:55]} {[%emt 00:00:04]} 40.
Rxf8+ {[%clk 00:03:45]} {[%emt 00:00:01]} Kg7 {[%clk 00:05:55]} {[%emt
00:00:01]} 41. Rf7+ {[%clk 00:03:45]} {[%emt 00:00:01]} Qb3 {[%clk 00:15:05]}
{[%emt 00:00:07]} 1-0